[Event "11th Festival Palmanova-A 2022"]
[Site "Strassoldo"]
[Date "2022.12.09"]
[Round "2.6"]
[White "Ceschia, Ivano"]
[Black "Casadio, Niccolo`"]
[Result "1/2-1/2"]
[ECO "D05"]
[WhiteElo "2217"]
[BlackElo "2095"]
[Annotator "TA"]
[PlyCount "126"]
[EventDate "2022.12.08"]
[EventType "swiss"]
[EventCountry "ITA"]
[SourceTitle "playchess.com"]
[Source "ChessBase"]
[SourceQuality "1"]
[TimeControl "5400+30"]

{[%evp 11,126,8,27,31,42,36,26,33,32,5,7,0,57,50,86,75,82,52,117,87,77,81,87,100,90,50,70,14,10,11,15,18,0,0,12,-18,32,-20,-10,0,22,22,22,10,24,18,88,45,54,51,74,54,45,0,0,0,0,0,103,102,164,84,132,6,4,6,34,41,33,30,54,42,71,0,0,0,0,-8,-6,-5,68,68,70,70,73,76,143,143,150,150,151,151,169,151,151,151,151,151,151,151,151,150,150,143,143,143,132,31,121,8,8,0,0,0,286,291,293]} 1. d4 {[%emt 0:00:04]} e6 {[%emt 0:00:05]} 2. Nf3 {[%emt 0:00:08]} Nf6 {[%emt 0:00:06]} 3. e3 {[%emt 0:00:10]} d5 {[%emt 0:02:05]} 4. Bd3 {[%emt 0:00:20]} c5 {[%emt 0:02:29]} 5. O-O {[%emt 0:00:47]} Nc6 {[%emt 0:00:15]} 6. b3 {[%emt 0:00:34][%cal Bb2b3,Bb3c4,Bc4d5][%mdl 32]} Qc7 {[%emt 0:03:28]} 7. c4 {[%emt 0:16:34] D05: Colle System with ...e6.} dxc4 {[%emt 0:08:19]} 8. bxc4 {[%emt 0:00:07]} Be7 {[%emt 0:00:40]} 9. Nc3 {[%emt 0:01:23] White has an edge.} O-O {[%emt 0:01:14]} 10. d5 {[%emt 0:07:47] [#]} exd5 $146 {[%emt 0:03:28]} ({Predecessor:} 10... Ne5 11. Nxe5 Qxe5 12. Qb3 exd5 13. cxd5 b5 14. f4 Qh5 15. Bxb5 Rb8 16. Qa3 a6 {1-0 (40) Kovalenko,S (2222)-Sergienko,S (2325) Voronezh 2018}) 11. cxd5 {[%emt 0:00:20]} Nb4 {[%emt 0:02:04]} (11... Ne5 $11) 12. Be2 $14 {[%emt 0:10:23]} Bf5 {[%emt 0:06:12]} 13. a3 $1 {[%emt 0:00:56]} Na6 {[%emt 0:02:04]} 14. Nd2 {[%emt 0:18:57] e4 is the strong threat.} Qe5 {[%emt 0:07:43] Inhibits e4.} (14... Bd6 $1 $14) 15. Qb3 {[%emt 0:00:26]} Bd6 {[%emt 0:00:10][%csl Gd6][%cal Re5h2]} 16. g3 {[%emt 0:02:48]} Nc7 {[%emt 0:11:13][%cal Rc7d5]} 17. Nc4 {[%emt 0:08:43]} Qe7 {[%emt 0:00:07]} 18. Bf3 {[%emt 0:05:03]} Bd3 $1 {[%emt 0:01:28]} 19. Rd1 {[%emt 0:00:39]} (19. Nxd6 $1 $14 Qxd6 20. Rd1) 19... Bxc4 $11 {[%emt 0:00:11]} 20. Qxc4 {[%emt 0:00:07]} a6 {[%emt 0:00:03]} 21. e4 {[%emt 0:11:15]} b5 {[%emt 0:00:29]} 22. Qe2 {[%emt 0:02:25]} Rfe8 {[%emt 0:01:30]} 23. Re1 {[%emt 0:01:07]} Qd7 {[%emt 0:02:12]} (23... Nd7 $11) 24. Qd1 {[%emt 0:01:11]} (24. Qc2 $14) 24... Be5 {[%emt 0:01:29]} 25. Bb2 {[%emt 0:00:23]} a5 {[%emt 0:01:26]} 26. Qc2 {[%emt 0:00:41]} c4 {[%emt 0:02:58]} 27. Nd1 {[%emt 0:00:25][%cal Bc3d1,Bd1b2,Bb2a4][%mdl 32]} Bxb2 {[%emt 0:00:35]} 28. Nxb2 {[%emt 0:00:04]} Na6 {[%emt 0:06:02]} (28... a4 $11) 29. a4 {[%emt 0:01:19]} Rac8 $1 {[%emt 0:00:41]} 30. axb5 {[%emt 0:00:35]} Qxb5 {[%emt 0:00:10]} 31. Qc3 {[%emt 0:02:38]} (31. Re3 $5 {[%cal Ra1c1]}) 31... Qb4 {[%emt 0:04:19]} 32. Na4 {[%emt 0:02:01]} (32. Rec1 {simplifies} Nc5 33. Qxb4 axb4 34. Rxc4 Ncxe4 35. Rxb4 g5 36. Bxe4 Rxe4 37. Rxe4 Nxe4 38. Nd1) 32... Nc5 {[%emt 0:00:38] Against e5} 33. Qxb4 {[%emt 0:02:33]} axb4 {[%emt 0:00:25]} 34. Nb6 $1 {[%emt 0:00:02][%csl LRc4,LRc8] Against c3} Nb3 {[%emt 0:01:12]} 35. Nxc8 $16 {[%emt 0:00:13]} Rxc8 {[%emt 0:03:03] [#]} (35... Nxa1 $16 36. Nd6 Nc2) 36. Ra4 {[%emt 0:00:46]} ({White should try} 36. Ra7 $1 $18) 36... Nd2 {[%emt 0:00:41] [#] Inhibits e5.} (36... Nd4 $142 37. Kg2 c3) 37. Bd1 {[%emt 0:00:47]} (37. Kg2 $1 $16 b3 38. Rb4) 37... b3 $132 {[%emt 0:00:43][%mdl 2048] Black is not holding back} 38. d6 {[%emt 0:00:30] Threatens to win with e5.} b2 {[%emt 0:00:43]} (38... Ndxe4 $2 39. d7 Rd8 40. Rxc4 $18) (38... Nfxe4 $5 39. d7 Rd8 $11) 39. Bc2 {[%emt 0:00:49] Prevents b1Q. aiming for Kg2.} Nf3+ {[%emt 0:00:14]} 40. Kf1 {[%emt 0:00:07]} Nxe1 {[%emt 0:00:53]} (40... Nxh2+ $2 41. Kg2 Nhg4 42. Rb4 $18) 41. Kxe1 {[%emt 0:00:02][%mdl 4096] Endgame KRB-KRN} g6 {[%emt 0:03:59]} 42. Kd2 {[%emt 0:01:05]} (42. Ke2 $16) 42... c3+ {[%emt 0:00:55]} 43. Kd3 {[%emt 0:00:18]} Nd7 $1 {[%emt 0:00:30] And now ...Nc5+ would win.} 44. Ra7 {[%emt 0:00:56]} Ne5+ {[%emt 0:00:10]} 45. Ke2 {[%emt 0:00:18]} Nc4 {[%emt 0:03:34]} (45... b1=R $11 46. Bxb1 (46. d7 Nxd7 47. Bxb1 c2 $17) 46... c2 47. Bxc2 Rxc2+ 48. Ke3 Rc8) 46. Rc7 $14 {[%emt 0:03:29] Dancing on a razor blade.} Nxd6 {[%emt 0:00:07]} 47. Rxc8+ {[%emt 0:00:02]} Nxc8 {[%emt 0:00:06] KB-KN} 48. Kd3 {[%emt 0:00:01]} f6 {[%emt 0:04:20]} ({Black should play} 48... g5) 49. Kxc3 $16 {[%emt 0:00:17]} Kf7 {[%emt 0:00:07]} 50. Kxb2 {[%emt 0:00:26]} Ke6 {[%emt 0:00:10]} 51. f4 {[%emt 0:00:06]} g5 {[%emt 0:00:41]} 52. Kc3 {[%emt 0:00:58]} gxf4 {[%emt 0:01:18]} 53. gxf4 {[%emt 0:00:02]} Ne7 {[%emt 0:00:26]} 54. Bb3+ {[%emt 0:01:01]} Kd6 {[%emt 0:00:09]} 55. Kd4 {[%emt 0:00:12]} Nc6+ {[%emt 0:00:30]} 56. Ke3 {[%emt 0:00:07]} Kc5 {[%emt 0:00:54]} 57. h4 {[%emt 0:00:08]} h6 {[%emt 0:00:08]} 58. Bd5 {[%emt 0:00:38] White wants to mate with Bxc6.} Ne7 {[%emt 0:00:16]} 59. Ba8 {[%emt 0:00:03]} ({Better is} 59. Ba2 $16) 59... Ng6 {[%emt 0:01:06]} (59... f5 $1 $14) 60. Kf3 {[%emt 0:01:33]} ({Only move:} 60. h5 $16 Ne7 61. Kd3) 60... h5 $11 {[%emt 0:02:10]} 61. Kg3 {[%emt 0:00:31] Hoping for Bd5.} Kd4 {[%emt 0:00:21]} 62. e5 {[%emt 0:01:07]} Nxe5 {[%emt 0:00:43][%mdl 8192]} 63. fxe5 $18 {[%emt 0:00:45]} Kxe5 {[%emt 0:00:05][%mdl 32768] Weighted Error Value: White=0.22 (precise) /Black=0.28 (precise) . An unexpected result.} 1/2-1/2

[Event "11th Festival Palmanova-A 2022"]
[Site "Strassoldo"]
[Date "2022.12.09"]
[Round "2.7"]
[White "Ranfagni, Stefano"]
[Black "Iolis, Oleg"]
[Result "1-0"]
[ECO "B26"]
[WhiteElo "1934"]
[BlackElo "2212"]
[Annotator "TA"]
[PlyCount "69"]
[EventDate "2022.12.08"]
[EventType "swiss"]
[EventCountry "ITA"]
[SourceTitle "playchess.com"]
[Source "ChessBase"]
[SourceQuality "1"]
[TimeControl "5400+30"]

{[%evp 16,69,-6,0,0,-18,10,12,15,0,14,-12,-21,-64,-66,-61,0,0,8,0,0,0,43,25,27,22,26,29,36,33,33,36,34,25,33,41,381,391,466,470,464,465,584,583,558,564,937,921,1600,1536,1493,1518,1384,1368,1181,1098]} 1. e4 {[%emt 0:00:03]} c5 {[%emt 0:00:04]} 2. Nc3 {[%emt 0:00:04]} d6 {[%emt 0:00:16]} 3. g3 {[%emt 0:00:05]} g6 {[%emt 0:00:05]} 4. Bg2 {[%emt 0:00:06]} Bg7 {[%emt 0:00:04]} 5. d3 {[%emt 0:00:08]} Nc6 {[%emt 0:00:10]} 6. Be3 {[%emt 0:00:11]} Rb8 {[%emt 0:00:44]} 7. Qd2 {[%emt 0:00:34]} b5 {[%emt 0:00:08][%cal Bb7b5,Bb5b4][%mdl 32]} 8. Nge2 {[%emt 0:01:01]} b4 {[%emt 0:02:38] The main line 8...b4 scores better than 8...Nd4.} 9. Nd1 $1 {[%emt 0:00:06]} h5 {[%emt 0:04:50] B26: Closed Sicilian: 3 g3, lines with early Be3.} 10. h3 {[%emt 0:01:27]} Nf6 {[%emt 0:00:33]} 11. f4 {[%emt 0:01:37][%cal Oe4e5] [#] e5! is the strong threat.} Nd7 {[%emt 0:02:12] Against e5. The position is equal.} 12. O-O {[%emt 0:01:31] [#]} a5 $146 {[%emt 0:06:31]} ({Predecessor:} 12... Nb6 13. Kh2 Bd7 14. Rb1 Qc8 15. b3 Nd4 16. c3 bxc3 17. Ndxc3 f5 18. Rfc1 Nxe2 19. Nxe2 {0-1 (41) Djordjevic,V (2421)-Damljanovic,B (2548) Belgrade 2017}) 13. Rb1 {[%emt 0:04:09]} Nd4 {[%emt 0:14:19]} 14. f5 {[%emt 0:05:21]} gxf5 {[%emt 0:30:57]} 15. exf5 {[%emt 0:00:51]} Nxe2+ {[%emt 0:01:09]} (15... Rg8 $15) 16. Qxe2 $11 {[%emt 0:00:16]} Bb7 {[%emt 0:00:07]} 17. Bf4 {[%emt 0:07:07]} Bxg2 {[%emt 0:07:56]} 18. Kxg2 {[%emt 0:00:28]} Be5 {[%emt 0:00:47]} 19. Ne3 {[%emt 0:03:56]} Bxf4 {[%emt 0:00:12]} 20. Rxf4 {[%emt 0:00:15]} Nf6 {[%emt 0:00:09]} 21. Nc4 {[%emt 0:02:37]} Qc7 {[%emt 0:08:08]} 22. Re1 {[%emt 0:03:26]} a4 {[%emt 0:00:47]} 23. Rf3 {[%emt 0:07:46][%cal Bf4f3,Bf3e3,Be3e7][%mdl 32]} Kf8 {[%emt 0:01:51]} 24. Re3 {[%emt 0:02:03][%cal Re3e7]} Rb7 {[%emt 0:00:13]} 25. Qf3 {[%emt 0:01:42] [#] Hoping for Rxe7.} Ra7 $2 {[%emt 0:01:15][%mdl 8192] This move loses the game for Black.} ({Black should try} 25... Qc8 $14) 26. Rxe7 $18 {[%emt 0:08:37]} Qxe7 {[%emt 0:00:23]} 27. Rxe7 {[%emt 0:00:04] White is clearly winning.} Rxe7 {[%emt 0:00:02]} 28. Nxd6 {[%emt 0:00:08]} b3 {[%emt 0:04:57]} 29. axb3 {[%emt 0:00:51]} axb3 {[%emt 0:00:03]} 30. cxb3 {[%emt 0:00:07]} Kg7 {[%emt 0:00:18]} 31. Qf4 {[%emt 0:00:46] Black must now prevent Qg5+.} Rh6 {[%emt 0:00:14]} 32. Qg5+ {[%emt 0:02:27]} Kh7 {[%emt 0:00:04]} 33. Ne4 {[%emt 0:00:16]} Rxe4 {[%emt 0:01:58]} 34. dxe4 {[%emt 0:00:13]} Nxe4 {[%emt 0:00:02]} 35. Qe7 {[%emt 0:00:46][%csl LRe4,LRf7] Weighted Error Value: White=0.05 (flawless) /Black=0.49} 1-0

[Event "11th Festival Palmanova-A 2022"]
[Site "Strassoldo"]
[Date "2022.12.09"]
[Round "2.8"]
[White "Capaliku, Aleks"]
[Black "Lumachi, Gabriele"]
[Result "0-1"]
[ECO "A45"]
[WhiteElo "2030"]
[BlackElo "2394"]
[Annotator "TA"]
[PlyCount "84"]
[EventDate "2022.12.08"]
[EventType "swiss"]
[EventCountry "ITA"]
[SourceTitle "playchess.com"]
[Source "ChessBase"]
[SourceQuality "1"]
[TimeControl "5400+30"]

{[%evp 9,84,3,30,22,28,-3,-1,-8,0,2,12,17,6,4,0,-28,0,-6,0,0,15,0,17,20,17,13,17,11,0,0,0,0,0,0,0,0,0,-39,-39,-41,-44,-38,-39,-39,-39,-40,-47,-44,-39,-40,-39,-39,-39,-54,-39,-64,-38,-75,-75,-121,-121,-596,-597,-591,-593,-525,-514,-491,-445,-595,-541,-540,-531,-906,-903,-29960,-5011]} 1. d4 {[%emt 0:00:01]} Nf6 {[%emt 0:00:41]} 2. Bf4 {[%emt 0:00:02]} Nh5 {[%emt 0:02:16]} 3. Bd2 {[%emt 0:00:39]} Nf6 {[%emt 0:00:41]} 4. Bf4 {[%emt 0:00:03]} c5 {[%emt 0:00:05]} 5. e3 {[%emt 0:00:21]} Nd5 {[%emt 0:00:22]} 6. Bg3 {[%emt 0:07:21] A45: Trompowsky Attack.} Qb6 {[%emt 0:00:10]} 7. Nc3 {[%emt 0:08:11]} Nxc3 {[%emt 0:00:15]} 8. bxc3 {[%emt 0:00:03] The position is equal.} d6 {[%emt 0:04:42] [#]} 9. Qb1 $146 {[%emt 0:05:22]} ({Predecessor:} 9. Bd3 Nc6 10. Nf3 g6 11. O-O Bg7 12. Qd2 O-O 13. Rab1 Qd8 14. h3 b6 15. d5 Na5 16. Rfe1 e5 17. e4 {0-1 (37) Grebnev,A (2469)-Makarian,R (2470) Sochi 2021}) 9... Nc6 {[%emt 0:12:38]} 10. Qxb6 {[%emt 0:11:08]} axb6 {[%emt 0:00:07]} 11. Bb5 {[%emt 0:01:02] Black must now prevent d5.} Bd7 {[%emt 0:00:45]} 12. Ne2 {[%emt 0:09:23][%cal Bg1e2,Be2f4,Bf4d5][%mdl 32]} Na5 {[%emt 0:03:03]} 13. a4 {[%emt 0:10:44]} Bxb5 {[%emt 0:00:43]} 14. axb5 {[%emt 0:00:08]} e6 {[%emt 0:02:54]} 15. O-O {[%emt 0:00:20][%cal Od4d5]} Be7 {[%emt 0:02:29] Against d5} 16. d5 {[%emt 0:12:26]} exd5 {[%emt 0:07:00]} 17. Nf4 {[%emt 0:02:33]} Kd7 {[%emt 0:00:04]} 18. Nxd5 {[%emt 0:01:03]} Nc4 {[%emt 0:00:07]} 19. f3 {[%emt 0:03:41]} Rhc8 {[%emt 0:01:11]} 20. e4 {[%emt 0:02:57]} Bd8 {[%emt 0:01:00]} 21. Rfd1 {[%emt 0:07:15]} Ra5 {[%emt 0:00:39]} 22. Rxa5 {[%emt 0:00:16]} bxa5 {[%emt 0:00:13]} 23. Ra1 {[%emt 0:01:11] Inhibits a4.} (23. Kf2 $5 {[%cal Rd5e3]}) 23... Ra8 {[%emt 0:04:25]} 24. Ra4 {[%emt 0:00:38]} Nb6 {[%emt 0:00:04]} 25. Nxb6+ {[%emt 0:00:43]} Bxb6 $15 {[%emt 0:00:05][%mdl 4096] Endgame KRB-KRB} 26. c4 {[%emt 0:00:01]} Ke6 {[%emt 0:07:09]} 27. Kf2 {[%emt 0:00:51]} Bd8 {[%emt 0:00:20]} 28. Ke3 {[%emt 0:01:05]} g5 {[%emt 0:01:34]} 29. Kd3 {[%emt 0:03:35]} Bf6 {[%emt 0:02:39]} 30. Be1 {[%emt 0:01:05]} b6 {[%emt 0:00:05]} 31. c3 {[%emt 0:02:25]} Be5 {[%emt 0:02:28]} 32. g3 {[%emt 0:00:02]} f5 {[%emt 0:01:22][%cal Bf7f5,Bf5f4][%mdl 32]} 33. Bd2 {[%emt 0:06:19]} f4 {[%emt 0:00:36]} 34. g4 {[%emt 0:01:46]} ({Better is} 34. gxf4 gxf4 35. Ke2) 34... h5 $17 {[%emt 0:00:05]} 35. gxh5 {[%emt 0:02:45][%mdl 8192] [#] Now White is beyond hope.} (35. h3 $17 {nothing else works.}) 35... Rh8 $19 {[%emt 0:00:05]} 36. Ra1 {[%emt 0:00:15]} Rxh5 {[%emt 0:00:05]} 37. Rg1 {[%emt 0:00:32]} Rxh2 {[%emt 0:01:56]} 38. Rxg5 {[%emt 0:00:02]} Rf2 {[%emt 0:00:12]} 39. Rg8 {[%emt 0:00:32]} ({Weaker is} 39. Rg6+ Kf7 40. Rg5 Rxf3+ 41. Ke2 Rg3 42. Bxf4 Bxf4 $19) 39... Rxf3+ {[%emt 0:00:20]} 40. Ke2 {[%emt 0:00:57]} Rh3 {[%emt 0:00:05] ...f3+ is the strong threat.} 41. Rb8 {[%emt 0:00:40]} f3+ {[%emt 0:00:11]} ({Inferior is} 41... Bxc3 42. Bxf4 Rh4 43. Be3 $17) 42. Ke3 {[%emt 0:00:32] [#]} Bf4+ $1 {[%emt 0:00:47][%mdl 512] Weighted Error Value: White=0.54/Black=0.05 (flawless)} 0-1

[Event "11th Festival Palmanova-A 2022"]
[Site "Strassoldo"]
[Date "2022.12.09"]
[Round "2.9"]
[White "Negro, Roberto"]
[Black "Titze, Leo"]
[Result "0-1"]
[ECO "D05"]
[WhiteElo "2117"]
[BlackElo "2252"]
[Annotator "TA"]
[PlyCount "86"]
[EventDate "2022.12.08"]
[EventType "swiss"]
[EventCountry "ITA"]
[SourceTitle "playchess.com"]
[Source "ChessBase"]
[SourceQuality "1"]
[TimeControl "5400+30"]

{[%evp 16,86,7,10,20,16,17,0,0,2,6,-6,-5,-12,-8,-13,-12,-22,0,0,0,0,0,-18,-15,-33,-38,-50,-49,-47,-59,-119,-62,-258,27,-212,-212,-259,-249,-247,-237,-343,-288,-287,-297,-289,-258,-1096,-752,-747,-719,-689,-638,-1881,-1098,-1451,-1443,-29992,-363,-1223,-1109,-1389,-1049,-1427,-1224,-29988,-29989,-29991,-29992,-29992,-29989,-29989,-1045]} 1. Nf3 {[%emt 0:02:07]} Nf6 {[%emt 0:00:30]} 2. d4 {[%emt 0:01:52]} e6 {[%emt 0:00:34]} 3. e3 {[%emt 0:02:20]} d5 {[%emt 0:05:11]} 4. Bd3 {[%emt 0:00:10]} Bd6 {[%emt 0:00:10]} 5. Nbd2 {[%emt 0:05:10]} Nbd7 {[%emt 0:00:49]} 6. O-O {[%emt 0:00:58]} O-O {[%emt 0:03:51]} 7. e4 {[%emt 0:01:12]} dxe4 {[%emt 0:00:42]} 8. Nxe4 {[%emt 0:00:06]} Nxe4 {[%emt 0:00:41]} 9. Bxe4 {[%emt 0:00:10]} h6 {[%emt 0:03:31] D05: Colle System with ...e6.} 10. c4 {[%emt 0:06:41]} c5 {[%emt 0:04:00]} 11. Be3 {[%emt 0:08:19]} Qc7 {[%emt 0:16:52] The position is equal.} 12. Rc1 {[%emt 0:10:54] [#]} Rb8 $146 {[%emt 0:19:22]} ({Predecessor:} 12... Rd8 13. Bb1 cxd4 14. Bxd4 b6 15. Qc2 Nf8 16. Qc3 f6 17. b4 Bb7 {1-0 (41) Mansson,L (2234)-Vernersson,P (2318) Sweden 2016}) 13. Bb1 {[%emt 0:18:29]} b6 {[%emt 0:09:28]} 14. h3 {[%emt 0:10:00]} Bb7 {[%emt 0:04:14]} 15. Qe2 {[%emt 0:12:23]} Nf6 {[%emt 0:06:35]} (15... Rfd8 {is interesting.} 16. Rcd1 Bxf3 17. Qxf3 cxd4 18. Bxd4 Bh2+) 16. Rfd1 {[%emt 0:00:39]} (16. Rcd1 {simplifies} Rfd8 17. Rfe1 Rbc8 18. dxc5 Bxc5 19. Bxc5 Bxf3 20. Qxf3 Qxc5 21. b3) 16... Rbd8 {[%emt 0:06:30]} (16... cxd4 {is more complex.} 17. Nxd4 Bh2+ 18. Kh1 Bf4) 17. dxc5 {[%emt 0:01:33]} bxc5 {[%emt 0:02:10]} 18. Bd2 {[%emt 0:01:46]} Qc6 {[%emt 0:07:45]} 19. Ne1 {[%emt 0:02:10]} Bb8 {[%emt 0:02:46]} 20. Ba5 {[%emt 0:02:03]} Rd4 {[%emt 0:00:57]} 21. Rxd4 {[%emt 0:04:22]} cxd4 $40 {[%emt 0:00:02][%mdl 128] White needs to defend precisely.} 22. c5 {[%emt 0:00:14] Prevents Qd6.} e5 {[%emt 0:00:50]} 23. f3 {[%emt 0:01:21]} ({White should play} 23. b4 $1 $15 Qd5 24. b5) 23... Qe6 {[%emt 0:03:49]} ({Better is} 23... Re8 $17 {Strongly threatening ...e4.} 24. b4 a6) 24. b4 $2 {[%emt 0:02:06]} (24. Bd3 $1 $15) 24... Nh5 $2 {[%emt 0:00:35]} (24... e4 $19 25. fxe4 Bf4) 25. Be4 $2 {[%emt 0:01:29]} (25. c6 $1 $11 {and White has nothing to worry.} Bxc6 26. Qc2) 25... Ng3 {[%emt 0:00:22]} 26. Qd3 {[%emt 0:00:35]} Nxe4 {[%emt 0:00:23]} 27. fxe4 {[%emt 0:00:05]} Qg6 {[%emt 0:00:37]} ({Not} 27... Qxa2 28. c6 Rc8 29. c7 (29. cxb7 $2 Rxc1 30. Kf1 Qa1 $19) 29... Bxc7 30. Rxc7 Rxc7 31. Bxc7 $14) 28. Qc4 {[%emt 0:02:12]} (28. Qd2 {was called for.}) 28... Bxe4 {[%emt 0:00:14]} 29. c6 {[%emt 0:00:06]} d3 {[%emt 0:00:47] [#] ...d2 is the strong threat.} 30. b5 {[%emt 0:00:09]} Bc7 {[%emt 0:00:22] Chess con chili.} 31. Bd2 {[%emt 0:01:16]} ({Much weaker is} 31. Bxc7 d2 32. Kf2 Qf5+ 33. Ke2 Bd5) (31. Qb4 Bd6 32. Qd2) 31... Bb6+ $19 {[%emt 0:00:26]} 32. Kh1 {[%emt 0:01:18]} Qf5 {[%emt 0:00:18][%cal Rf5h3]} 33. Kh2 {[%emt 0:01:12]} h5 {[%emt 0:00:58][%cal Of5f2]} 34. Rc3 {[%emt 0:01:06]} Rd8 {[%emt 0:00:33]} 35. c7 {[%emt 0:00:45]} Rc8 {[%emt 0:00:05][%cal Of5f1,Bd8c8,Bc8c7,Bc7c2,Bc2d2][%mdl 32] Hoping for ...Qf1!} 36. Qa4 {[%emt 0:00:39] [#]} Qg6 $2 {[%emt 0:00:59]} (36... Qf1 $1 {mates} 37. Qxa7 (37. Rc5 Bxc5) 37... Bxa7 38. b6 Bxb6 39. Rc5 Bxc5 40. Be3 Bxe3 41. Nf3 Bf4+ 42. g3 Qf2+ 43. Kh1 Bxf3#) 37. Rc4 $2 {[%emt 0:00:26]} (37. Qa6 Qf5 38. a3) 37... Bd5 {[%emt 0:00:26] A strong pair of Bishops.} 38. Qa6 {[%emt 0:00:11]} Qe6 {[%emt 0:00:31]} (38... Rxc7 $2 {loses.} 39. Rxc7 e4 40. Rd7 $19) 39. Rh4 {[%emt 0:00:29]} Rxc7 {[%emt 0:00:28] White must now prevent ...Qf6.} 40. Nxd3 {[%emt 0:00:04]} Rc2 {[%emt 0:00:28] Black mates.} 41. Nb4 {[%emt 0:00:41]} Rxd2 {[%emt 0:00:32]} 42. Nxd5 {[%emt 0:00:04]} Qxd5 {[%emt 0:00:31][%csl Gd2][%cal Rd5g2]} 43. Qc8+ {[%emt 0:00:02]} Qd8 {[%emt 0:00:02] Weighted Error Value: White=1.55/Black=0.79} (43... Bd8 $142 44. Rg4 hxg4 45. Qxg4 e4 46. Qg3 Qxb5 47. Qf4 Qe2 48. Qxd2 Bc7+ 49. Kg1 Qxd2 50. g3 Bxg3 51. a4 Qh2+ 52. Kf1 Qf2#) 0-1